[Event "Reykjavik Open 2022"]
[Site "Reykjavik"]
[Date "2022.04.07"]
[Round "2.20"]
[White "George Samir, David"]
[Black "Thorfinnsson, Bragi"]
[Result "1/2-1/2"]
[ECO "B32"]
[WhiteElo "2032"]
[BlackElo "2419"]
[Annotator "ChessBase"]
[PlyCount "84"]
[EventDate "2022.04.06"]
[EventCountry "ISL"]
[SourceTitle "playchess.com"]
[Source "ChessBase"]
[SourceQuality "1"]
[TimeControl "40/5400+30:1800+30"]

1. e4 {[%emt 0:00:02]} c5 {[%emt 0:01:32]} 2. Nf3 {[%emt 0:00:14]} Nc6 {[%emt 0:01:19]} 3. d4 {[%emt 0:00:22]} cxd4 {[%emt 0:00:13]} 4. Nxd4 {[%emt 0:00:15]} e5 {[%emt 0:01:23]} 5. Nb5 {[%emt 0:01:11]} d6 {[%emt 0:01:11]} 6. N1c3 {[%emt 0:00:30]} a6 {[%emt 0:02:35]} 7. Na3 {[%emt 0:01:33]} b5 {[%emt 0:02:37]} 8. Nd5 {[%emt 0:01:31]} Be6 {[%emt 0:03:28]} 9. c4 {[%emt 0:02:10]} b4 {[%emt 0:03:45]} 10. Nc2 {[%emt 0:00:42]} Rb8 {[%emt 0:02:18]} 11. h4 {[%emt 0:02:56]} Be7 {[%emt 0:12:26]} 12. g3 {[%emt 0:04:04]} Nf6 {[%emt 0:01:58]} 13. Bg2 {[%emt 0:06:10]} Nd7 {[%emt 0:03:04]} 14. b3 {[%emt 0:02:16]} Nc5 {[%emt 0:01:32]} 15. O-O {[%emt 0:07:06]} O-O {[%emt 0:03:39]} 16. Be3 {[%emt 0:04:57]} Qd7 {[%emt 0:03:28]} 17. Kh2 {[%emt 0:03:55]} a5 {[%emt 0:03:10]} 18. Qe1 {[%emt 0:03:28]} Bd8 {[%emt 0:04:02]} 19. f4 {[%emt 0:03:00]} exf4 {[%emt 0:05:15]} 20. gxf4 {[%emt 0:00:11]} a4 {[%emt 0:01:29]} 21. Bxc5 {[%emt 0:03:06]} dxc5 {[%emt 0:00:19]} 22. Rd1 {[%emt 0:04:25]} Qc8 {[%emt 0:01:39]} 23. f5 {[%emt 0:06:32]} Bxd5 {[%emt 0:02:07]} 24. exd5 {[%emt 0:01:13]} Na5 {[%emt 0:01:19]} 25. Qg3 {[%emt 0:00:41]} Bf6 {[%emt 0:02:25]} 26. Ne3 {[%emt 0:00:45]} Qd8 {[%emt 0:02:26]} 27. h5 {[%emt 0:00:57]} Bh4 {[%emt 0:05:30]} 28. Qh3 {[%emt 0:05:09]} axb3 {[%emt 0:03:06]} 29. axb3 {[%emt 0:02:43]} Nxb3 {[%emt 0:01:06]} 30. h6 {[%emt 0:04:18]} Qd6+ {[%emt 0:04:59]} 31. Kh1 {[%emt 0:00:45]} Qxh6 {[%emt 0:05:57]} 32. Ng4 {[%emt 0:01:58]} Qg5 {[%emt 0:00:18]} 33. Nh2 {[%emt 0:05:12]} Bg3 {[%emt 0:03:21]} 34. Ng4 {[%emt 0:06:00]} Bd6 {[%emt 0:01:37]} 35. f6 {[%emt 0:00:13]} g6 {[%emt 0:00:22]} 36. Nf2 {[%emt 0:01:36]} Qh5 {[%emt 0:05:53]} 37. Qxh5 {[%emt 0:00:46]} gxh5 {[%emt 0:00:05]} 38. Ne4 {[%emt 0:01:28]} Be5 {[%emt 0:01:48]} 39. Rb1 {[%emt 0:01:26]} Na5 {[%emt 0:00:19]} 40. Nxc5 {[%emt 0:00:00]} Nxc4 {[%emt 0:00:00]} 41. Nd7 {[%emt 0:03:41]} b3 {[%emt 0:03:48]} 42. Be4 {[%emt 0:02:13]} Bd4 {[%emt 0:04:50]} 1/2-1/2

[Event "Reykjavik Open 2022"]
[Site "Reykjavik"]
[Date "2022.04.07"]
[Round "2.21"]
[White "Hjartarson, Johann"]
[Black "De Coninck, Rafael"]
[Result "1-0"]
[ECO "A11"]
[WhiteElo "2470"]
[BlackElo "2119"]
[Annotator "RC"]
[PlyCount "37"]
[EventDate "2022.04.06"]
[EventCountry "ISL"]
[SourceTitle "playchess.com"]
[Source "ChessBase"]
[SourceQuality "1"]
[TimeControl "40/5400+30:1800+30"]

1. Nf3 {[%emt 0:02:06]} Nf6 {[%emt 0:00:37]} 2. g3 {[%emt 0:00:20]} d5 {[%emt 0:00:27]} 3. Bg2 {[%emt 0:00:08]} c6 {[%emt 0:01:48]} 4. O-O {[%emt 0:00:32]} h6 {[%emt 0:02:35]} 5. d3 {[%emt 0:02:41]} Bf5 {[%emt 0:01:17]} 6. c4 {[%emt 0:04:17]} e6 {[%emt 0:01:46]} 7. Qb3 {[%emt 0:05:53]} Qb6 {[%emt 0:02:33]} 8. Be3 {[%emt 0:01:29]} Qxb3 {[%emt 0:01:46]} 9. axb3 {[%emt 0:00:04]} Na6 {[%emt 0:03:45]} 10. Nc3 {[%emt 0:01:00]} Bh7 {[%emt 0:04:12]} 11. Ne5 {[%emt 0:06:57]} Nc5 {[%emt 0:09:45]} 12. b4 {[%emt 0:01:08]} Ncd7 {[%emt 0:05:56]} 13. Nxd7 {[%emt 0:00:27]} Nxd7 {[%emt 0:01:43]} 14. b5 {[%emt 0:00:20]} Bc5 {[%emt 0:00:25]} 15. Bxc5 {[%emt 0:01:12]} Nxc5 {[%emt 0:02:38]} 16. b4 {[%emt 0:03:58]} Nxd3 {[%emt 0:01:29]} 17. bxc6 {[%emt 0:03:45]} bxc6 {[%emt 0:00:40]} 18. cxd5 {[%emt 0:02:14]} Nxb4 {[%emt 0:01:27]} 19. dxc6 {[%emt 0:00:25]} 1-0

[Event "Reykjavik Open 2022"]
[Site "Reykjavik"]
[Date "2022.04.07"]
[Round "2.22"]
[White "Garbuz, Vitaliy"]
[Black "Andersen, Mads"]
[Result "0-1"]
[ECO "C47"]
[WhiteElo "2122"]
[BlackElo "2570"]
[Annotator "ChessBase"]
[PlyCount "76"]
[EventDate "2022.04.06"]
[EventCountry "ISL"]
[SourceTitle "playchess.com"]
[Source "ChessBase"]
[SourceQuality "1"]
[TimeControl "40/5400+30:1800+30"]

1. e4 {[%emt 0:02:40]} e5 {[%emt 0:00:13]} 2. Nf3 {[%emt 0:00:13]} Nc6 {[%emt 0:00:07]} 3. Nc3 {[%emt 0:00:08]} Nf6 {[%emt 0:00:11]} 4. d4 {[%emt 0:00:07]} exd4 {[%emt 0:00:06]} 5. Nd5 {[%emt 0:00:08]} Nb4 {[%emt 0:01:01]} 6. Bc4 {[%emt 0:00:07]} Nbxd5 {[%emt 0:00:36]} 7. exd5 {[%emt 0:00:08]} Bb4+ {[%emt 0:00:42]} 8. Kf1 {[%emt 0:00:07]} Bc5 {[%emt 0:10:08]} 9. Qe1+ {[%emt 0:00:12]} Qe7 {[%emt 0:06:42]} 10. Bg5 {[%emt 0:00:19]} O-O {[%emt 0:04:56]} 11. Qxe7 {[%emt 0:00:10]} Bxe7 {[%emt 0:00:02]} 12. Re1 {[%emt 0:05:35]} Bb4 {[%emt 0:07:30]} 13. Re2 {[%emt 0:10:14]} b5 {[%emt 0:10:49]} 14. Bxb5 {[%emt 0:18:51]} Nxd5 {[%emt 0:00:20]} 15. Nxd4 {[%emt 0:00:10]} h6 {[%emt 0:04:47]} 16. Bc1 {[%emt 0:11:31]} Rb8 {[%emt 0:02:23]} 17. Bd3 {[%emt 0:14:36]} Bc5 {[%emt 0:06:51]} 18. Nb3 {[%emt 0:04:29]} Bd6 {[%emt 0:00:11]} 19. Bd2 {[%emt 0:01:17]} Nb4 {[%emt 0:15:46]} 20. Bxb4 {[%emt 0:01:02]} Rxb4 {[%emt 0:00:09]} 21. f3 {[%emt 0:03:33]} c5 {[%emt 0:11:16]} 22. Re4 {[%emt 0:04:58]} Bb7 {[%emt 0:02:17]} 23. Rxb4 {[%emt 0:02:17]} cxb4 {[%emt 0:00:02]} 24. Kf2 {[%emt 0:07:39]} Be5 {[%emt 0:00:52]} 25. Na5 {[%emt 0:02:36]} Ba8 {[%emt 0:01:38]} 26. Re1 {[%emt 0:04:24]} Bxb2 {[%emt 0:01:57]} 27. Re7 {[%emt 0:00:05]} Rd8 {[%emt 0:01:20]} 28. Bb5 {[%emt 0:00:46]} Bd5 {[%emt 0:05:37]} 29. Rxd7 {[%emt 0:04:52]} Rxd7 {[%emt 0:00:09]} 30. Bxd7 {[%emt 0:00:03]} Bd4+ {[%emt 0:02:49]} 31. Ke2 {[%emt 0:00:27]} Bb6 {[%emt 0:00:11]} 32. Nb3 {[%emt 0:01:58]} Bc4+ {[%emt 0:00:02]} 33. Ke1 {[%emt 0:00:43]} Kf8 {[%emt 0:02:45]} 34. Bf5 {[%emt 0:00:06]} a5 {[%emt 0:00:29]} 35. Bd3 {[%emt 0:00:21]} Be6 {[%emt 0:00:43]} 36. Bb5 {[%emt 0:00:05]} Ke7 {[%emt 0:00:13]} 37. Ke2 {[%emt 0:00:19]} Kd6 {[%emt 0:00:13]} 38. g4 {[%emt 0:01:36]} Ke5 {[%emt 0:00:25]} 0-1

[Event "Reykjavik Open 2022"]
[Site "Reykjavik"]
[Date "2022.04.07"]
[Round "2.23"]
[White "Williams, Simon K"]
[Black "Mai, Alexander Oliver"]
[Result "1-0"]
[ECO "D00"]
[WhiteElo "2464"]
[BlackElo "2207"]
[Annotator "RC"]
[PlyCount "143"]
[EventDate "2022.04.06"]
[EventCountry "ISL"]
[SourceTitle "playchess.com"]
[Source "ChessBase"]
[SourceQuality "1"]
[TimeControl "40/5400+30:1800+30"]

1. d4 {[%emt 0:00:09]} Nf6 {[%emt 0:00:08]} 2. Bg5 {[%emt 0:00:09]} d5 {[%emt 0:01:43]} 3. Bxf6 {[%emt 0:00:37]} exf6 {[%emt 0:00:41]} 4. e3 {[%emt 0:00:26]} c6 {[%emt 0:01:37]} 5. Nd2 {[%emt 0:02:36]} Be6 {[%emt 0:00:57]} 6. Bd3 {[%emt 0:03:01]} Nd7 {[%emt 0:00:58]} 7. Ne2 {[%emt 0:07:32]} f5 {[%emt 0:07:00]} 8. c4 {[%emt 0:10:44]} dxc4 {[%emt 0:05:58]} 9. Bxc4 {[%emt 0:01:50]} Bxc4 {[%emt 0:00:22]} 10. Nxc4 {[%emt 0:00:04]} Nb6 {[%emt 0:01:55]} 11. Qb3 {[%emt 0:10:44]} Nxc4 {[%emt 0:02:23]} 12. Qxc4 {[%emt 0:00:05]} Qd7 {[%emt 0:03:49]} 13. O-O {[%emt 0:01:13]} Bd6 {[%emt 0:00:57]} 14. Rab1 {[%emt 0:06:16]} a5 {[%emt 0:01:20]} 15. Rfd1 {[%emt 0:01:32]} Rd8 {[%emt 0:00:32]} 16. Nc3 {[%emt 0:02:50]} O-O {[%emt 0:03:50]} 17. d5 {[%emt 0:03:06]} Qc7 {[%emt 0:08:38]} 18. g3 {[%emt 0:01:04]} cxd5 {[%emt 0:01:21]} 19. Qxc7 {[%emt 0:01:22]} Bxc7 {[%emt 0:00:02]} 20. Nxd5 {[%emt 0:00:08]} Bd6 {[%emt 0:09:20]} 21. Rd3 {[%emt 0:04:43]} Kh8 {[%emt 0:37:05]} 22. Rbd1 {[%emt 0:04:19]} Be5 {[%emt 0:00:07]} 23. b3 {[%emt 0:01:52]} Rd6 {[%emt 0:05:54]} 24. a4 {[%emt 0:08:00]} g6 {[%emt 0:00:50]} 25. Kg2 {[%emt 0:05:21]} Rc8 {[%emt 0:01:11]} 26. h3 {[%emt 0:01:16]} h5 {[%emt 0:00:21]} 27. f4 {[%emt 0:02:27]} Bg7 {[%emt 0:01:44]} 28. Kf3 {[%emt 0:00:06]} Bf8 {[%emt 0:00:37]} 29. g4 {[%emt 0:02:19]} hxg4+ {[%emt 0:00:13]} 30. hxg4 {[%emt 0:00:04]} fxg4+ {[%emt 0:00:04]} 31. Kxg4 {[%emt 0:00:04]} f5+ {[%emt 0:00:53]} 32. Kf3 {[%emt 0:00:05]} Rcd8 {[%emt 0:02:32]} 33. Ke2 {[%emt 0:01:30]} Kg7 {[%emt 0:00:16]} 34. Nc7 {[%emt 0:01:03]} Kf7 {[%emt 0:00:37]} 35. Nb5 {[%emt 0:02:21]} Rxd3 {[%emt 0:00:09]} 36. Rxd3 {[%emt 0:00:03]} Rxd3 {[%emt 0:00:44]} 37. Kxd3 {[%emt 0:00:01]} Bc5 {[%emt 0:00:12]} 38. Nd4 {[%emt 0:00:40]} b6 {[%emt 0:00:54]} 39. Nf3 {[%emt 0:00:41]} Bd6 {[%emt 0:01:02]} 40. Kc4 {[%emt 0:00:00]} Ke6 {[%emt 0:00:00]} 41. Nd4+ {[%emt 0:21:14]} Kf6 {[%emt 0:05:58]} 42. Nf3 {[%emt 0:04:12]} Bc5 {[%emt 0:01:05]} 43. Kd3 {[%emt 0:00:18]} Bd6 {[%emt 0:00:59]} 44. Ng5 {[%emt 0:02:04]} Ba3 {[%emt 0:01:31]} 45. Nf3 {[%emt 0:02:23]} Bd6 {[%emt 0:00:19]} 46. Nd2 {[%emt 0:00:18]} g5 {[%emt 0:07:58]} 47. fxg5+ {[%emt 0:00:15]} Kxg5 {[%emt 0:00:06]} 48. e4 {[%emt 0:00:15]} f4 {[%emt 0:02:16]} 49. Nf3+ {[%emt 0:00:13]} Kg4 {[%emt 0:00:46]} 50. e5 {[%emt 0:00:30]} Bc5 {[%emt 0:01:22]} 51. Ke4 {[%emt 0:00:07]} Kg3 {[%emt 0:04:13]} 52. e6 {[%emt 0:01:09]} Kg4 {[%emt 0:02:15]} 53. Ne5+ {[%emt 0:09:51]} Kg3 {[%emt 0:04:51]} 54. Ng6 {[%emt 0:00:52]} f3 {[%emt 0:00:33]} 55. e7 {[%emt 0:00:04]} f2 {[%emt 0:01:14]} 56. e8=Q {[%emt 0:00:47]} f1=Q {[%emt 0:00:05]} 57. Qe5+ {[%emt 0:00:13]} Kf2 {[%emt 0:03:59]} 58. Qf6+ {[%emt 0:00:54]} Ke1 {[%emt 0:00:05]} 59. Qc3+ {[%emt 0:00:44]} Kd1 {[%emt 0:00:49]} 60. Qa1+ {[%emt 0:00:12]} Ke2 {[%emt 0:00:01]} 61. Nf4+ {[%emt 0:00:10]} Kf2 {[%emt 0:00:08]} 62. Nd3+ {[%emt 0:00:12]} Kg2 {[%emt 0:00:12]} 63. Qxf1+ {[%emt 0:00:10]} Kxf1 {[%emt 0:00:02]} 64. Nxc5 {[%emt 0:00:06]} bxc5 {[%emt 0:00:06]} 65. Kd5 {[%emt 0:00:02]} Ke2 {[%emt 0:00:12]} 66. Kxc5 {[%emt 0:00:07]} Kd3 {[%emt 0:00:03]} 67. b4 {[%emt 0:00:16]} axb4 {[%emt 0:00:05]} 68. Kxb4 {[%emt 0:00:03]} Kd4 {[%emt 0:00:04]} 69. a5 {[%emt 0:00:07]} Kd5 {[%emt 0:00:03]} 70. Kb5 {[%emt 0:00:04]} Kd6 {[%emt 0:00:03]} 71. Kb6 {[%emt 0:00:04]} Kd7 {[%emt 0:00:03]} 72. Kb7 {[%emt 0:00:05]} 1-0

[Event "Reykjavik Open 2022"]
[Site "Reykjavik"]
[Date "2022.04.07"]
[Round "2.24"]
[White "Kracht, Raphael"]
[Black "Clarke, Brandon G I"]
[Result "0-1"]
[ECO "B21"]
[WhiteElo "2119"]
[BlackElo "2430"]
[Annotator "RC"]
[PlyCount "82"]
[EventDate "2022.04.06"]
[EventCountry "ISL"]
[SourceTitle "playchess.com"]
[Source "ChessBase"]
[SourceQuality "1"]
[TimeControl "40/5400+30:1800+30"]

1. e4 {[%emt 0:04:14]} c5 {[%emt 0:00:10]} 2. d4 {[%emt 0:00:04]} cxd4 {[%emt 0:00:14]} 3. c3 {[%emt 0:00:05]} dxc3 {[%emt 0:01:21]} 4. Nxc3 {[%emt 0:00:58]} Nc6 {[%emt 0:00:10]} 5. Nf3 {[%emt 0:00:06]} e6 {[%emt 0:00:26]} 6. Bc4 {[%emt 0:00:04]} Bb4 {[%emt 0:00:30]} 7. O-O {[%emt 0:00:08]} Nge7 {[%emt 0:00:21]} 8. Qc2 {[%emt 0:00:05]} Ng6 {[%emt 0:04:40]} 9. Rd1 {[%emt 0:03:24]} O-O {[%emt 0:03:42]} 10. Be3 {[%emt 0:04:54]} b6 {[%emt 0:05:57]} 11. a3 {[%emt 0:23:13]} Bxc3 {[%emt 0:00:23]} 12. bxc3 {[%emt 0:00:08]} Qc7 {[%emt 0:01:01]} 13. a4 {[%emt 0:12:55]} Bb7 {[%emt 0:05:36]} 14. Bb5 {[%emt 0:04:20]} d5 {[%emt 0:02:37]} 15. Bxc6 {[%emt 0:25:53]} Bxc6 {[%emt 0:00:44]} 16. exd5 {[%emt 0:00:39]} Bxd5 {[%emt 0:00:06]} 17. Nd4 {[%emt 0:00:09]} Rfc8 {[%emt 0:01:22]} 18. Nb5 {[%emt 0:00:20]} Qc6 {[%emt 0:00:29]} 19. f3 {[%emt 0:03:11]} a6 {[%emt 0:02:16]} 20. Na3 {[%emt 0:00:56]} b5 {[%emt 0:00:38]} 21. axb5 {[%emt 0:02:17]} axb5 {[%emt 0:00:02]} 22. Rdc1 {[%emt 0:00:24]} Ra4 {[%emt 0:03:28]} 23. Qb2 {[%emt 0:01:00]} Bxf3 {[%emt 0:08:52]} 24. Qxb5 {[%emt 0:04:10]} Bxg2 {[%emt 0:00:39]} 25. c4 {[%emt 0:04:22]} Qf3 {[%emt 0:01:13]} 26. Qg5 {[%emt 0:00:13]} f6 {[%emt 0:02:34]} 27. Qg3 {[%emt 0:00:12]} Ne5 {[%emt 0:00:59]} 28. Qxf3 {[%emt 0:01:06]} Bxf3 {[%emt 0:00:03]} 29. c5 {[%emt 0:01:39]} Bd5 {[%emt 0:04:30]} 30. h3 {[%emt 0:02:02]} g5 {[%emt 0:02:29]} 31. Nb5 {[%emt 0:00:46]} Rh4 {[%emt 0:00:58]} 32. Nd6 {[%emt 0:01:29]} Rb8 {[%emt 0:00:28]} 33. Rcb1 {[%emt 0:00:41]} Rxb1+ {[%emt 0:00:09]} 34. Rxb1 {[%emt 0:00:05]} Rxh3 {[%emt 0:00:14]} 35. Rb8+ {[%emt 0:00:58]} Kg7 {[%emt 0:00:02]} 36. Bd2 {[%emt 0:00:25]} Nf3+ {[%emt 0:00:13]} 37. Kg2 {[%emt 0:00:05]} Rh2+ {[%emt 0:00:04]} 38. Kg3 {[%emt 0:00:03]} Rxd2 {[%emt 0:00:09]} 39. Ne8+ {[%emt 0:01:26]} Kg6 {[%emt 0:00:04]} 40. Nd6 {[%emt 0:00:00]} Ng1 {[%emt 0:00:00]} 41. Rg8+ {[%emt 0:01:13]} Kh5 {[%emt 0:00:36]} 0-1

[Event "Reykjavik Open 2022"]
[Site "Reykjavik"]
[Date "2022.04.07"]
[Round "2.25"]
[White "Romanishin, Oleg M"]
[Black "Marie, Maxime"]
[Result "0-1"]
[ECO "A46"]
[WhiteElo "2415"]
[BlackElo "2175"]
[Annotator "RC"]
[PlyCount "63"]
[EventDate "2022.04.06"]
[EventCountry "ISL"]
[SourceTitle "playchess.com"]
[Source "ChessBase"]
[SourceQuality "1"]
[TimeControl "40/5400+30:1800+30"]

1. d4 {[%emt 0:03:03]} Nf6 {[%emt 0:03:39]} 2. Nf3 {[%emt 0:00:07]} e6 {[%emt 0:00:05]} 3. g3 {[%emt 0:00:04]} b5 {[%emt 0:03:28]} 4. Bg5 {[%emt 0:00:44]} Bb7 {[%emt 0:01:59]} 5. Bg2 {[%emt 0:01:42]} c5 {[%emt 0:03:24]} 6. Bxf6 {[%emt 0:00:31]} Qxf6 {[%emt 0:02:31]} 7. c3 {[%emt 0:00:36]} g5 {[%emt 0:06:23]} 8. O-O {[%emt 0:02:34]} h5 {[%emt 0:01:54]} 9. Nbd2 {[%emt 0:23:02]} h4 {[%emt 0:15:55]} 10. e4 {[%emt 0:06:45]} cxd4 {[%emt 0:05:41]} 11. cxd4 {[%emt 0:02:43]} Bb4 {[%emt 0:00:35]} 12. Rc1 {[%emt 0:20:48]} hxg3 {[%emt 0:11:11]} 13. fxg3 {[%emt 0:00:08]} g4 {[%emt 0:00:11]} 14. Ne5 {[%emt 0:03:21]} Qh6 {[%emt 0:02:15]} 15. Nxg4 {[%emt 0:00:18]} Qxd2 {[%emt 0:00:53]} 16. Qxd2 {[%emt 0:00:16]} Bxd2 {[%emt 0:00:06]} 17. Rc7 {[%emt 0:00:07]} Ba6 {[%emt 0:12:07]} 18. d5 {[%emt 0:12:55]} Ba5 {[%emt 0:05:45]} 19. Rcc1 {[%emt 0:00:29]} b4 {[%emt 0:04:09]} 20. Rf3 {[%emt 0:08:15]} d6 {[%emt 0:11:25]} 21. e5 {[%emt 0:02:07]} Nd7 {[%emt 0:02:02]} 22. exd6 {[%emt 0:01:26]} O-O {[%emt 0:02:27]} 23. Nh6+ {[%emt 0:03:47]} Kg7 {[%emt 0:00:11]} 24. Rxf7+ {[%emt 0:00:36]} Rxf7 {[%emt 0:00:48]} 25. Nxf7 {[%emt 0:00:14]} Bb6+ {[%emt 0:00:37]} 26. Kh1 {[%emt 0:00:08]} exd5 {[%emt 0:00:05]} 27. Bxd5 {[%emt 0:00:25]} Rf8 {[%emt 0:00:32]} 28. Ng5 {[%emt 0:02:50]} Rf5 {[%emt 0:00:37]} 29. Ne6+ {[%emt 0:00:52]} Kf6 {[%emt 0:01:55]} 30. Nc7 {[%emt 0:01:18]} Rf1+ {[%emt 0:02:40]} 31. Rxf1+ {[%emt 0:00:28]} Bxf1 {[%emt 0:00:02]} 32. Bc6 {[%emt 0:03:51]} 0-1

[Event "Reykjavik Open 2022"]
[Site "Reykjavik"]
[Date "2022.04.07"]
[Round "2.26"]
[White "Mai, Aron Thor"]
[Black "Baskin, Robert"]
[Result "1/2-1/2"]
[ECO "B11"]
[WhiteElo "2081"]
[BlackElo "2383"]
[Annotator "RC"]
[PlyCount "110"]
[EventDate "2022.04.06"]
[EventCountry "ISL"]
[SourceTitle "playchess.com"]
[Source "ChessBase"]
[SourceQuality "1"]
[TimeControl "40/5400+30:1800+30"]

1. e4 {[%emt 0:00:04]} c6 {[%emt 0:00:16]} 2. Nc3 {[%emt 0:01:13]} d5 {[%emt 0:00:10]} 3. Nf3 {[%emt 0:00:15]} dxe4 {[%emt 0:00:15]} 4. Nxe4 {[%emt 0:00:23]} Nf6 {[%emt 0:00:05]} 5. Nxf6+ {[%emt 0:02:45]} exf6 {[%emt 0:00:06]} 6. Bc4 {[%emt 0:02:31]} Bd6 {[%emt 0:00:19]} 7. Qe2+ {[%emt 0:01:34]} Be7 {[%emt 0:02:04]} 8. O-O {[%emt 0:01:27]} O-O {[%emt 0:00:07]} 9. h3 {[%emt 0:01:15]} Nd7 {[%emt 0:08:19]} 10. d4 {[%emt 0:02:59]} Bd6 {[%emt 0:02:36]} 11. Re1 {[%emt 0:00:48]} Qc7 {[%emt 0:09:51]} 12. c3 {[%emt 0:02:32]} Rd8 {[%emt 0:00:51]} 13. Bb3 {[%emt 0:11:19]} Nf8 {[%emt 0:01:03]} 14. Nd2 {[%emt 0:03:32]} Be6 {[%emt 0:08:00]} 15. Ne4 {[%emt 0:07:53]} Re8 {[%emt 0:04:08]} 16. Nxd6 {[%emt 0:02:11]} Qxd6 {[%emt 0:00:05]} 17. Be3 {[%emt 0:11:27]} Ng6 {[%emt 0:07:21]} 18. Bc2 {[%emt 0:15:03]} Qd5 {[%emt 0:14:08]} 19. Bb3 {[%emt 0:02:22]} Qd7 {[%emt 0:04:44]} 20. Bc2 {[%emt 0:01:52]} Bf5 {[%emt 0:03:58]} 21. Bxf5 {[%emt 0:02:12]} Qxf5 {[%emt 0:00:04]} 22. Qg4 {[%emt 0:00:11]} Qd5 {[%emt 0:00:08]} 23. Kh2 {[%emt 0:09:15]} h5 {[%emt 0:06:09]} 24. Qf3 {[%emt 0:00:44]} Qxf3 {[%emt 0:02:33]} 25. gxf3 {[%emt 0:00:02]} f5 {[%emt 0:02:35]} 26. f4 {[%emt 0:01:16]} Re6 {[%emt 0:01:25]} 27. Kg3 {[%emt 0:00:47]} Rae8 {[%emt 0:02:51]} 28. Rad1 {[%emt 0:03:57]} Re4 {[%emt 0:02:33]} 29. Bd2 {[%emt 0:06:16]} b5 {[%emt 0:06:23]} 30. a4 {[%emt 0:04:08]} bxa4 {[%emt 0:01:48]} 31. Rxe4 {[%emt 0:00:22]} fxe4 {[%emt 0:01:33]} 32. Ra1 {[%emt 0:00:16]} Ne7 {[%emt 0:00:29]} 33. Rxa4 {[%emt 0:00:34]} Nf5+ {[%emt 0:02:09]} 34. Kg2 {[%emt 0:00:44]} Nh4+ {[%emt 0:02:12]} 35. Kf1 {[%emt 0:00:03]} Nf3 {[%emt 0:00:24]} 36. Bc1 {[%emt 0:00:55]} Re6 {[%emt 0:01:37]} 37. f5 {[%emt 0:00:59]} Rf6 {[%emt 0:00:29]} 38. Rxa7 {[%emt 0:00:10]} Rxf5 {[%emt 0:00:11]} 39. Re7 {[%emt 0:00:55]} Ra5 {[%emt 0:01:51]} 40. Re8+ {[%emt 0:00:00]} Kh7 {[%emt 0:00:00]} 41. Rxe4 {[%emt 0:19:21]} Ra1 {[%emt 0:01:01]} 42. Kg2 {[%emt 0:06:51]} f5 {[%emt 0:01:11]} 43. Re6 {[%emt 0:00:02]} Nxd4 {[%emt 0:00:26]} 44. cxd4 {[%emt 0:00:12]} Rxc1 {[%emt 0:00:05]} 45. h4 {[%emt 0:01:35]} Rc4 {[%emt 0:01:32]} 46. Kg3 {[%emt 0:01:58]} Rxd4 {[%emt 0:00:56]} 47. Rxc6 {[%emt 0:00:02]} Rg4+ {[%emt 0:00:29]} 48. Kh3 {[%emt 0:00:18]} Rb4 {[%emt 0:00:06]} 49. Rc5 {[%emt 0:02:20]} Kg6 {[%emt 0:00:26]} 50. Rc6+ {[%emt 0:00:31]} Kf7 {[%emt 0:00:04]} 51. Rc7+ {[%emt 0:00:25]} Kf6 {[%emt 0:00:05]} 52. Rc2 {[%emt 0:01:24]} Ke5 {[%emt 0:01:41]} 53. Kg3 {[%emt 0:00:49]} Rb3+ {[%emt 0:03:57]} 54. Kg2 {[%emt 0:01:07]} Rb4 {[%emt 0:04:20]} 55. Kg3 {[%emt 0:00:22]} Rb3+ {[%emt 0:04:21]} 1/2-1/2

[Event "Reykjavik Open 2022"]
[Site "Reykjavik"]
[Date "2022.04.07"]
[Round "2.27"]
[White "Tania, Sachdev"]
[Black "Johannsson, Birkir Isak"]
[Result "1-0"]
[ECO "D35"]
[WhiteElo "2392"]
[BlackElo "2103"]
[Annotator "ChessBase"]
[PlyCount "61"]
[EventDate "2022.04.06"]
[EventCountry "ISL"]
[SourceTitle "playchess.com"]
[Source "ChessBase"]
[SourceQuality "1"]
[TimeControl "40/5400+30:1800+30"]

1. d4 {[%emt 0:00:15]} d5 {[%emt 0:00:10]} 2. c4 {[%emt 0:00:04]} e6 {[%emt 0:00:09]} 3. Nf3 {[%emt 0:00:05]} Nf6 {[%emt 0:00:07]} 4. Nc3 {[%emt 0:00:05]} c6 {[%emt 0:00:06]} 5. Bg5 {[%emt 0:00:04]} Nbd7 {[%emt 0:02:02]} 6. cxd5 {[%emt 0:00:18]} exd5 {[%emt 0:00:19]} 7. e3 {[%emt 0:00:07]} h6 {[%emt 0:05:43]} 8. Bh4 {[%emt 0:05:47]} g5 {[%emt 0:00:59]} 9. Bg3 {[%emt 0:00:08]} Nh5 {[%emt 0:00:21]} 10. Be5 {[%emt 0:18:21]} Nhf6 {[%emt 0:04:29]} 11. Bd3 {[%emt 0:04:57]} Nxe5 {[%emt 0:11:55]} 12. Nxe5 {[%emt 0:00:04]} Bg7 {[%emt 0:05:51]} 13. O-O {[%emt 0:10:34]} Qe7 {[%emt 0:11:33]} 14. f4 {[%emt 0:16:36]} Be6 {[%emt 0:06:52]} 15. Qa4 {[%emt 0:02:44]} O-O {[%emt 0:04:33]} 16. Rae1 {[%emt 0:00:54]} c5 {[%emt 0:07:11]} 17. Bb1 {[%emt 0:09:03]} Rfe8 {[%emt 0:04:35]} 18. a3 {[%emt 0:02:31]} a6 {[%emt 0:02:28]} 19. Qc2 {[%emt 0:06:23]} Rec8 {[%emt 0:06:21]} 20. Qf2 {[%emt 0:07:37]} gxf4 {[%emt 0:05:23]} 21. Qxf4 {[%emt 0:00:08]} Nd7 {[%emt 0:01:52]} 22. Nf3 {[%emt 0:01:00]} Qf6 {[%emt 0:06:34]} 23. Qg3 {[%emt 0:00:10]} Re8 {[%emt 0:01:21]} 24. Ba2 {[%emt 0:03:25]} c4 {[%emt 0:01:13]} 25. e4 {[%emt 0:01:21]} dxe4 {[%emt 0:06:21]} 26. Nxe4 {[%emt 0:00:11]} Qd8 {[%emt 0:00:44]} 27. Nd6 {[%emt 0:01:02]} Rf8 {[%emt 0:00:26]} 28. d5 {[%emt 0:02:09]} Qb6+ {[%emt 0:02:39]} 29. Kh1 {[%emt 0:02:20]} Bxd5 {[%emt 0:00:26]} 30. Nf5 {[%emt 0:00:27]} Qxb2 {[%emt 0:00:52]} 31. Re5 {[%emt 0:02:11]} 1-0